bitfinex/quotes_ETHUSD_20240721
["timestamp","ask_amount","ask_price","bid_price","bid_amount"]
[1721593864486,0.55,3527.8,3525.9,3.25345]
[1721593865014,0.55,3527.8,3526.0,0.2839]
[1721593865226,0.55,3527.8,3525.9,6.08957]
[1721593865227,0.55,3527.8,3526.1,1.146307]
[1721593865611,0.55,3527.8,3526.1,0.862407]
[1721593865928,5.83092989,3527.9,3526.1,0.862407]
[1721593866138,0.55,3527.8,3526.1,1.146307]
[1721593866418,0.55,3527.8,3525.9,0.25345]
[1721593866419,1.4559,3527.6,3526.0,0.2839]
[1721593866716,0.55,3527.5,3525.9,0.25345]
[1721593868590,3.0,3527.7,3525.9,0.3101587]
[1721593868920,3.0,3527.8,3525.9,0.25345]
[1721593869588,3.334,3527.7,3525.9,0.25345]
[1721593869906,0.34997372,3527.8,3526.0,0.278795]
[1721593870121,5.83092989,3527.9,3526.0,0.278795]
[1721593870122,3.884,3527.7,3526.0,0.278795]
[1721593870337,0.55,3527.7,3526.0,0.278795]
[1721593870482,0.55,3527.8,3526.0,0.278795]
[1721593871229,5.38092989,3527.9,3526.0,0.278795]
[1721593871385,0.68368299,3527.8,3526.0,0.278795]
[1721593873101,0.55,3527.7,3526.0,0.278795]
[1721593873583,0.68368299,3527.8,3526.1,0.05671004]
[1721593873795,5.38092989,3527.9,3526.2,2.2506]
[1721593875202,3.334,3527.7,3526.2,2.2506]
[1721593876022,5.38092989,3527.9,3526.2,2.2506]
[1721593876221,5.38092989,3527.9,3526.3,0.05671233]
[1721593876438,5.38092989,3527.9,3526.2,2.2506]
[1721593876439,5.38092989,3527.9,3526.5,2.2506]
[1721593876616,5.38092989,3527.9,3526.6,0.22506]
[1721593876797,5.38092989,3528.5,3526.6,0.22506]
[1721593877634,5.38092989,3528.5,3526.6,3.06063]
[1721593877998,5.38092989,3528.5,3526.6,0.22506]
[1721593878535,5.38092989,3528.5,3526.9,2.83534]
[1721593878750,5.38092989,3528.5,3527.1,2.4204]
[1721593878946,5.38092989,3528.5,3527.4,0.2839]
[1721593879231,12.23531055,3529.0,3527.5,2.4204]
[1721593879232,0.07531055,3529.0,3527.5,2.4204]
[1721593879385,0.07531055,3529.0,3527.4,0.2839]
[1721593879386,0.07531055,3529.0,3527.7,2.4204]
[1721593879830,0.07531055,3529.0,3527.8,0.2839]
[1721593879989,0.07531055,3529.0,3527.9,0.553907]
[1721593880188,0.07531055,3529.0,3527.8,0.2839]
[1721593881391,3.334,3528.6,3527.7,2.4204]
[1721593881631,3.334,3528.6,3527.1,2.4204]
[1721593884296,0.55,3528.5,3527.1,2.4204]
[1721593884492,3.334,3528.6,3527.1,2.4204]
[1721593884692,0.3334,3528.5,3527.2,0.24204]
[1721593887510,0.3334,3528.5,3527.1,2.4204]
[1721593887710,0.3334,3528.5,3526.6,2.4204]
[1721593887711,3.334,3528.1,3526.6,2.4204]
[1721593888037,1.4559,3528.3,3526.6,2.4204]
[1721593888354,0.55,3528.2,3526.6,2.4204]
[1721593890521,6.16841,3528.1,3526.6,2.4204]
[1721593890747,1.667431,3528.0,3526.6,2.4204]
[1721593895428,1.667431,3528.0,3525.9,2.4127]
[1721593895630,2.83455,3527.9,3525.9,2.4127]
[1721593895875,3.38464,3527.8,3525.9,2.4127]
[1721593896170,0.55,3527.7,3525.9,2.4127]
[1721593896367,0.55,3527.7,3526.0,0.24127]
[1721593896368,0.5051931,3527.7,3526.0,0.24127]
[1721593896728,2.83457,3527.9,3526.0,0.24127]
[1721593896980,0.55,3527.8,3526.0,0.24127]
[1721593897272,3.0,3527.9,3526.0,0.24127]
[1721593897471,0.55,3527.8,3526.0,0.24127]
[1721593898335,5.504,3528.2,3526.1,2.4127]
[1721593898673,5.83439,3528.1,3526.1,2.4127]
[1721593898851,2.504,3527.8,3526.1,2.4127]
[1721593899064,2.504,3527.4,3526.1,2.4127]
[1721593899736,2.504,3527.0,3526.1,2.4127]
[1721593899936,2.504,3526.6,3525.5,2.2646]
[1721593900184,3.342,3526.3,3525.5,2.2646]
[1721593900373,3.342,3526.3,3524.9,2.2646]
[1721593900374,2.83592,3526.2,3524.9,2.2646]
[1721593900551,3.342,3526.3,3524.9,2.2646]
[1721593900552,0.55,3526.1,3524.9,2.2646]
[1721593900884,3.342,3526.3,3524.9,2.2646]
[1721593901086,1.167774,3526.2,3524.9,2.2646]
[1721593901243,6.17823,3525.8,3524.3,2.3867]
[1721593901444,3.342,3525.8,3524.3,2.3867]
[1721593901978,3.617774,3526.2,3524.3,2.3867]
[1721593902149,3.342,3526.3,3524.3,2.3867]
[1721593902356,3.0,3526.2,3524.3,2.3867]
[1721593902585,0.55,3526.1,3524.3,2.3867]
[1721593902887,3.342,3526.3,3524.3,2.3867]
[1721593903044,1.4559,3527.1,3524.3,2.6706]
[1721593903045,6.5924,3526.9,3524.3,2.6706]
[1721593903242,3.55,3526.7,3524.5,2.3867]
[1721593903643,6.38551,3526.7,3524.5,2.3867]
[1721593903843,3.55,3526.7,3524.5,2.3867]
[1721593904153,3.0,3526.7,3524.5,2.3867]
[1721593904477,3.0,3526.7,3524.6,2.3867]
[1721593904677,3.0,3526.7,3524.8,2.3867]
[1721593905656,3.342,3525.9,3524.8,2.3867]
[1721593906084,0.55,3525.8,3524.8,2.3867]
[1721593907259,3.38624,3525.8,3523.9,2.3867]
[1721593907456,4.29155,3526.6,3523.9,2.3867]
[1721593907457,5.38092989,3526.1,3523.9,2.3867]
[1721593907659,5.38092989,3526.1,3523.8,3.2839]
[1721593907660,5.38092989,3526.1,3524.1,2.3867]
[1721593907959,8.21692989,3526.1,3524.1,2.3867]
[1721593908159,3.342,3525.9,3524.1,2.3867]
[1721593908389,0.55,3525.8,3524.1,2.3867]
[1721593908903,2.83631,3525.7,3524.1,2.3867]
[1721593909190,0.672831,3525.6,3524.1,2.3867]
[1721593909388,0.55,3525.5,3524.1,2.3867]
[1721593909592,3.38647,3525.5,3524.1,2.3867]
[1721593910049,2.83659,3525.4,3524.1,2.3867]
[1721593910252,2.83681,3525.1,3524.1,2.3867]
[1721593910455,0.338681,3525.0,3524.1,2.3867]
[1721593910759,3.55,3525.3,3524.1,2.3867]
[1721593910760,0.55,3525.3,3524.1,2.3867]
[1721593911155,3.55,3525.3,3524.1,2.3867]
[1721593911402,2.83682,3525.1,3524.1,2.3867]
[1721593911599,3.55,3525.3,3524.1,2.3867]
[1721593911600,0.55,3525.0,3524.1,2.3867]
[1721593911753,5.83664,3525.3,3524.1,2.3867]
[1721593911754,3.0,3525.3,3524.1,2.3867]
[1721593911956,1.1842,3525.2,3524.1,2.3867]
[1721593912250,2.8368,3525.1,3524.1,2.3867]
[1721593912454,1.1842,3525.2,3524.1,2.3867]
[1721593912455,2.83691,3525.0,3524.1,2.3867]
[1721593912711,0.55,3524.9,3524.1,2.3867]
[1721593912868,3.892,3524.9,3523.3,2.2626]
[1721593913079,0.672891,3524.8,3523.4,0.2707532]
[1721593913256,0.55,3524.7,3523.4,0.2707532]
[1721593914083,3.38719,3524.7,3523.3,2.2626]
[1721593914493,3.342,3524.4,3523.3,2.2626]
[1721593914659,0.55,3524.7,3523.3,2.2626]
[1721593915088,2.83737,3524.4,3523.3,2.2626]
[1721593915297,3.342,3523.9,3523.3,2.2626]
[1721593915613,0.3342,3523.8,3523.3,2.2626]
[1721593915809,3.342,3524.4,3523.3,2.2626]
[1721593915958,3.55,3524.3,3523.3,2.2626]
[1721593916313,6.38745,3524.3,3523.3,2.2626]
[1721593916529,2.83753,3524.2,3523.3,2.2626]
[1721593916818,1.522953,3524.1,3523.3,2.2626]
[1721593916978,6.17977,3523.9,3522.3,2.2626]
[1721593917180,0.55,3523.8,3522.3,2.2626]
[1721593917390,4.522953,3524.1,3522.3,2.2626]
[1721593917795,7.360623,3524.1,3522.3,2.2626]
[1721593917979,4.54117729,3524.0,3522.4,0.27076922]
[1721593918181,3.38777,3523.9,3522.4,0.27076922]
[1721593918425,3.38777,3523.9,3522.2,0.44509224]
[1721593918426,3.342,3523.4,3522.2,0.44509224]
[1721593918633,0.55,3523.3,3521.8,2.2626]
[1721593920317,2.83833,3523.2,3521.8,2.2626]
[1721593920537,3.342,3522.9,3521.8,2.2626]
[1721593920713,0.3342,3522.8,3521.8,2.2626]
[1721593920878,0.3342,3522.8,3521.1,2.3741]
[1721593921084,3.342,3522.4,3521.1,2.3741]
[1721593921323,3.342,3521.9,3521.1,2.3741]
[1721593921790,8.72292989,3522.4,3521.1,2.3741]
[1721593921993,8.72292989,3522.4,3521.2,0.23741]
[1721593922324,5.38092989,3522.4,3521.2,0.23741]
[1721593922617,5.38092989,3522.4,3521.3,2.3741]
[1721593922618,4.78853796,3522.4,3521.3,2.3741]
[1721593922836,3.73547115,3522.4,3521.3,2.3741]
[1721593924111,0.55,3522.3,3521.3,2.3741]
[1721593924284,3.73547115,3522.8,3521.3,2.3741]
[1721593924687,4.08547115,3522.8,3521.4,2.83975]
[1721593924883,4.08547115,3522.8,3521.5,2.3741]
[1721593925137,4.08547115,3522.8,3521.6,2.3741]
[1721593925301,3.73547115,3522.8,3521.6,2.3741]
[1721593925629,3.73547115,3522.8,3521.7,0.23741]
[1721593925839,3.73547115,3522.8,3521.6,2.3741]
[1721593925989,3.73547115,3522.8,3520.3,2.3741]
[1721593925990,6.57418115,3522.8,3520.3,2.3741]
[1721593926190,6.57418115,3522.8,3520.4,0.2839]
[1721593926191,3.73547115,3522.8,3520.4,0.2839]
[1721593926391,3.0,3522.7,3520.6,3.12424]
[1721593926702,3.73547115,3522.8,3520.3,3.342]
[1721593926703,3.73547115,3522.8,3521.1,2.84001]
[1721593926892,3.73547115,3522.8,3521.2,2.3741]
[1721593927404,3.73547115,3522.8,3521.3,2.3741]
[1721593927609,3.73547115,3522.8,3521.4,2.3741]
[1721593927923,3.73547115,3522.8,3521.6,2.3741]
[1721593928145,3.73547115,3522.8,3521.7,0.549769]
[1721593928290,3.73547115,3522.8,3521.8,2.3741]
[1721593928855,12.20886013,3523.5,3522.1,2.83917]
[1721593928856,2.15621782,3523.5,3522.1,2.83917]
[1721593928993,2.15621782,3523.5,3522.2,2.3741]
[1721593930731,2.15621782,3523.5,3522.3,2.3741]
[1721593931031,2.15621782,3523.5,3522.4,2.895416]
[1721593931533,2.15621782,3523.5,3522.4,2.3741]
[1721593931737,2.15621782,3523.5,3522.8,2.3741]
[1721593931946,2.15621782,3524.1,3523.0,0.2839]
[1721593932249,3.342,3525.4,3523.0,0.2839]
[1721593932250,2.15621782,3524.6,3523.4,2.3741]
[1721593932544,2.15621782,3524.6,3523.6,2.3741]
[1721593932691,2.15621782,3524.6,3523.6,5.3741]
[1721593933196,12.16,3525.4,3523.6,5.3741]
[1721593933197,2.15621782,3525.1,3523.6,2.3741]
[1721593933619,2.837,3524.9,3523.6,2.3741]
[1721593933949,0.55,3524.8,3522.9,2.3741]
[1721593934236,0.3937,3524.7,3523.0,0.5658]
[1721593934439,0.55,3525.0,3523.1,2.3741]
[1721593934647,2.15621782,3525.1,3523.1,2.3741]
[1721593934928,2.15621782,3525.1,3523.2,2.3741]
[1721593935131,2.15621782,3525.1,3523.3,2.3741]
[1721593935319,2.15621782,3525.1,3523.4,0.8658]
[1721593935636,2.83689,3525.0,3523.4,0.8658]
[1721593936140,3.55,3524.9,3523.4,0.8658]
[1721593936500,0.55,3524.9,3523.4,0.8658]
[1721593937152,0.55,3524.9,3523.3,2.3741]
[1721593937297,3.892,3524.9,3523.3,2.3741]
[1721593937502,3.0,3524.8,3523.3,2.3741]
[1721593937847,0.55,3524.7,3523.3,2.3741]
[1721593937999,2.8372,3524.6,3523.3,2.3741]
[1721593938196,7.309707,3524.5,3523.3,2.3741]
[1721593938401,0.472427,3524.7,3523.3,2.3741]
[1721593938639,3.0,3524.4,3523.3,2.3741]
[1721593938842,0.472427,3524.7,3523.3,2.3741]
[1721593939293,2.83712,3524.7,3523.3,2.3741]
[1721593939493,3.283712,3524.6,3523.3,2.3741]
[1721593939718,0.283712,3524.6,3523.3,2.3741]
[1721593939931,5.83688,3525.0,3523.3,2.3741]
[1721593940135,2.83704,3524.8,3523.3,2.3741]
[1721593940294,3.0,3524.7,3523.3,2.3741]
[1721593940604,0.55,3524.6,3523.3,2.3741]
[1721593940809,0.55,3524.8,3523.3,2.3741]
[1721593941117,0.922385,3524.7,3523.3,2.3741]
[1721593941319,3.759575,3524.7,3523.3,2.3741]
[1721593941523,2.83737,3524.4,3523.3,2.3741]
[1721593941749,3.0,3524.3,3523.3,2.3741]
[1721593942102,3.55,3524.6,3523.3,2.3741]
[1721593942395,0.55,3524.6,3523.3,2.61151]
[1721593942634,3.0,3524.5,3523.3,2.3741]
[1721593942836,2.83736,3524.4,3523.3,2.3741]
[1721593943147,5.67512,3524.2,3523.3,2.3741]
[1721593943292,2.83753,3524.2,3521.8,2.4392]
[1721593943494,4.99389782,3524.0,3522.0,2.4392]
[1721593943707,4.99389782,3524.0,3522.1,0.24392]
[1721593943708,2.83785,3523.8,3522.1,0.24392]
[1721593943931,0.55,3523.7,3522.1,0.24392]
[1721593944107,3.55,3523.7,3522.1,0.24392]
[1721593944323,1.13814278,3523.9,3522.1,0.24392]
[1721593944324,0.55,3523.8,3522.1,0.24392]
[1721593944698,4.13814278,3523.9,3522.2,2.4392]
[1721593944921,3.0,3523.9,3521.7,0.91767918]
[1721593945129,2.15621782,3524.0,3522.0,2.4392]
[1721593945401,4.99389782,3524.0,3522.0,2.4392]
[1721593945631,7.99389782,3524.0,3522.0,2.4392]
[1721593945831,2.15621782,3524.0,3522.1,0.98704382]
[1721593946033,0.21562178,3523.9,3522.2,0.42709438]
[1721593946243,3.05338178,3523.9,3522.3,2.4392]
[1721593946542,2.51,3523.6,3522.3,2.4392]
[1721593946901,3.55,3523.5,3522.3,2.4392]
[1721593947137,3.0,3523.5,3522.3,2.4392]
[1721593947345,0.55,3523.4,3522.3,2.4392]
[1721593947507,3.0,3523.5,3522.3,2.4392]
[1721593947729,3.0,3523.7,3522.3,2.4392]
[1721593948014,3.21562178,3523.9,3522.3,2.4392]
[1721593948319,0.21562178,3523.9,3522.3,2.4392]
[1721593948538,0.21562178,3523.9,3522.5,2.4392]
[1721593948539,3.0,3523.9,3522.5,2.4392]
[1721593948834,2.15621782,3524.0,3522.5,2.4392]
[1721593949049,1.15621782,3524.0,3522.5,2.4392]
[1721593949398,3.66621782,3524.0,3522.5,2.4392]
[1721593949799,3.0,3523.9,3522.5,2.4392]
[1721593950145,1.15621782,3524.0,3522.7,2.4392]
[1721593950146,4.15621782,3524.0,3522.7,2.4392]
[1721593950443,0.55,3523.9,3522.7,2.4392]
[1721593950601,2.55,3523.9,3522.7,2.4392]
[1721593951048,1.15621782,3524.0,3522.7,2.4392]
[1721593951200,3.66621782,3524.0,3522.7,2.4392]
[1721593951400,0.36662178,3523.9,3522.7,2.4392]
[1721593952104,14.1928396,3524.4,3522.7,2.4392]
[1721593952502,2.8375,3524.3,3522.7,2.4392]
[1721593952698,3.0,3524.2,3522.7,2.4392]
[1721593952954,2.51,3524.0,3522.7,2.4392]
[1721593953129,0.834753,3523.9,3522.7,2.4392]
[1721593953335,3.834753,3523.9,3522.7,2.4392]
[1721593954053,2.83784,3523.8,3522.7,2.4392]
[1721593954351,3.834753,3523.9,3522.7,2.4392]
[1721593955157,3.0,3524.3,3522.7,2.4392]
[1721593956333,1.704,3524.2,3522.7,2.4392]
[1721593956535,2.83763,3524.1,3522.7,2.4392]
[1721593956735,3.0,3524.0,3522.7,2.4392]
[1721593956922,5.51,3524.0,3522.7,2.4392]
[1721593957244,1.704,3523.8,3522.7,2.4392]
[1721593957453,4.44793,3523.9,3522.7,2.4392]
[1721593957603,4.79793,3523.9,3522.7,2.4392]
[1721593957803,3.0,3523.8,3522.7,2.4392]
[1721593958501,4.06016,3523.9,3522.7,2.4392]
[1721593958701,1.704,3524.4,3522.9,2.3184]
[1721593958702,3.0,3524.4,3522.9,2.3184]
[1721593958955,11.6828396,3524.7,3522.9,2.3184]
[1721593961554,3.0,3524.4,3522.9,2.3184]
[1721593964155,11.6828396,3524.7,3523.5,2.51]
[1721593964443,3.28117362,3525.9,3523.6,2.3184]
[1721593964444,7.48,3525.1,3523.6,2.3184]
[1721593964646,7.48,3525.1,3524.0,2.3184]
[1721593965204,7.48,3525.1,3524.1,2.3184]
[1721593965924,7.48,3525.1,3524.3,2.51]
[1721593966146,7.48,3525.9,3524.5,2.3184]
[1721593966324,7.48,3525.9,3524.6,2.85624]
[1721593966918,7.48,3525.9,3524.6,2.3184]
[1721593967837,3.0,3525.8,3524.6,2.3184]
[1721593968210,5.83623,3525.8,3524.6,2.3184]
[1721593968408,2.83662,3525.4,3524.6,2.3184]
[1721593968940,3.0,3525.3,3524.6,2.3184]
[1721593969106,0.583662,3525.2,3524.6,2.3184]
[1721593970019,5.83623,3525.8,3524.6,2.3184]
[1721593970223,6.18623,3525.8,3524.6,2.3184]
[1721593970959,2.83674,3525.2,3524.6,2.3184]
[1721593971307,2.83647,3525.5,3524.6,2.3184]
[1721593971509,3.0,3525.4,3524.6,2.3184]
[1721593971704,0.583643,3525.3,3524.6,2.3184]
[1721593972512,2.83632,3525.7,3524.6,2.3184]
[1721593972707,3.0,3525.6,3524.6,2.3184]
[1721593973508,3.0,3525.7,3524.6,2.3184]
[1721593974612,0.55,3525.8,3524.6,2.3184]
[1721593974613,3.55,3525.8,3524.6,2.3184]
[1721593975959,4.54033,3525.7,3524.6,2.3184]
[1721593976151,3.9,3525.8,3524.6,2.3184]
[1721593976152,4.592033,3525.6,3524.6,2.3184]
[1721593976313,1.592033,3525.6,3524.6,2.3184]
[1721593978132,2.83649,3525.5,3524.6,2.3184]
[1721593978473,7.933033,3525.6,3524.6,2.3184]
[1721593978648,4.592033,3525.6,3524.6,2.3184]
[1721593978961,0.9682273,3525.5,3524.6,2.3184]
[1721593979332,3.9682273,3525.5,3524.6,2.3184]
[1721593979544,3.0,3525.4,3524.6,2.3184]
[1721593979746,0.9682273,3525.5,3524.6,2.3184]
[1721593980487,3.55,3525.8,3524.6,2.3184]
[1721593980988,7.48,3525.9,3524.8,2.3384]
[1721593983287,7.48,3525.9,3524.5,2.3384]
[1721593983445,7.48,3525.9,3524.6,2.3384]
[1721593984118,7.48,3525.9,3524.8,2.3384]
[1721593984312,7.48,3525.9,3525.0,2.3384]
[1721593984449,7.48,3525.9,3525.1,2.3384]
[1721593984911,7.48,3526.6,3525.1,2.3384]
[1721593985189,7.48,3526.6,3525.2,2.39512285]
[1721593985382,7.48,3526.6,3525.4,2.3384]
[1721593985559,7.48,3526.6,3525.6,2.3384]
[1721593985758,7.48,3526.6,3525.8,2.3384]
[1721593985959,7.48,3526.6,3526.0,2.3384]
[1721593986160,7.48,3527.5,3526.0,2.3384]
[1721593987063,3.0,3527.4,3526.1,2.3384]
[1721593987390,7.48,3527.5,3526.3,2.3384]
[1721593987557,7.48,3527.5,3526.6,2.3384]
[1721593987984,7.48,3527.5,3526.7,2.3384]
[1721593988154,7.48,3527.5,3526.9,2.3384]
[1721593988353,7.48,3528.3,3527.0,2.3384]
[1721593988587,7.48,3528.3,3527.2,2.3384]
[1721593989654,7.48,3528.3,3527.3,2.3384]
[1721593990763,11.6828396,3528.7,3527.3,2.3384]
[1721593991492,7.48,3528.9,3527.3,2.3384]
[1721593991707,6.16997,3528.7,3527.3,2.3384]
[1721593991904,7.48,3528.9,3527.3,2.3384]
[1721593991905,1.364997,3528.6,3527.3,2.3384]
[1721593992400,2.83423,3528.3,3527.3,2.3384]
[1721593992604,5.66852,3528.3,3527.3,2.3384]
[1721593992805,2.83408,3528.5,3527.3,2.3384]
[1721593993006,3.336,3528.7,3527.3,2.3384]
[1721593993007,3.0,3528.4,3527.3,2.3384]
[1721593993209,3.0,3528.6,3527.3,2.3384]
[1721593993519,0.6336,3528.5,3527.3,2.3384]
[1721593993870,2.83415,3528.4,3527.3,2.3384]
[1721593994065,3.0,3528.3,3527.3,2.3384]
[1721593994704,2.83447,3528.0,3527.3,2.3384]
[1721593995107,5.83455,3527.9,3527.3,2.3384]
[1721593995310,0.583455,3527.8,3527.3,2.3384]
[1721593995507,3.418115,3527.8,3527.3,2.3384]
[1721593995684,3.0,3527.7,3527.3,2.3384]
[1721593996018,0.583455,3527.8,3527.3,2.3384]
[1721593996317,3.418155,3527.8,3527.3,2.3384]
[1721593996609,9.3113655,3527.7,3526.3,2.3384]
[1721593996925,3.0,3527.7,3526.3,2.3384]
[1721593997071,2.8351,3527.3,3526.3,2.3384]
[1721593997277,0.35,3527.5,3526.3,2.3384]
[1721593997804,3.0,3527.6,3526.3,2.3384]
[1721593998109,0.3,3527.5,3526.3,2.3384]
[1721593998518,6.13487,3527.5,3526.3,2.3384]
[1721593998689,2.83503,3527.3,3526.3,2.3384]
[1721593998885,3.0,3527.2,3526.3,2.3384]
[1721593999294,2.83503,3527.3,3526.3,2.3384]
[1721593999518,3.596996,3527.2,3526.3,2.3384]
[1721593999829,3.0,3527.2,3526.3,2.3384]
[1721593999985,0.3,3527.5,3526.3,2.3384]
[1721594000307,2.83495,3527.4,3526.3,2.3384]
[1721594000618,3.0,3527.3,3526.3,2.3384]
[1721594001001,0.3,3527.5,3526.3,2.3384]
[1721594001729,3.0,3527.9,3526.3,2.3384]
[1721594001894,2.83472,3527.7,3526.3,2.3384]
[1721594002292,3.0,3527.6,3526.3,2.3384]
[1721594002497,5.83479,3527.6,3526.3,2.3384]
[1721594002732,0.55,3527.5,3526.3,2.3384]
[1721594002952,3.473491,3527.4,3526.3,2.3384]
[1721594003136,3.0,3527.3,3526.3,2.3384]
[1721594003484,0.638481,3527.4,3526.3,2.3384]
[1721594003907,3.0,3527.7,3526.3,2.3384]
[1721594004108,2.83487,3527.5,3526.3,2.3384]
[1721594004318,3.0,3527.4,3526.3,2.3384]
[1721594004582,2.83495,3527.4,3526.3,2.3384]
[1721594004786,3.0,3527.3,3526.3,2.3384]
[1721594004982,0.583495,3527.2,3526.3,2.3384]
[1721594005387,2.83551,3526.7,3526.3,2.3384]
[1721594005600,2.83538,3526.9,3526.3,2.3384]
[1721594005804,3.0,3526.8,3526.3,2.3384]
[1721594006426,3.0,3527.1,3526.3,2.3384]
[1721594006605,13.52307687,3528.4,3526.3,2.57224]
[1721594006606,2.83497,3527.4,3526.3,2.57224]
[1721594006787,5.83481,3527.6,3526.3,2.3384]
[1721594006986,6.18481,3527.6,3526.3,2.3384]
[1721594007312,2.83504,3527.3,3526.3,2.3384]
[1721594007519,3.336,3528.2,3526.3,2.3384]
[1721594007520,5.83513,3527.2,3526.3,2.3384]
[1721594007726,3.0,3527.2,3526.3,2.3384]
[1721594008028,3.418636,3527.2,3526.3,2.3384]
[1721594008240,3.0,3527.1,3526.3,2.3384]
[1721594008604,2.83528,3527.0,3526.3,2.3384]
[1721594008813,3.0,3527.1,3526.3,2.3384]
[1721594009631,3.0,3527.0,3526.3,2.3384]
[1721594009833,3.0,3527.2,3526.3,2.3384]
[1721594010124,5.83513,3527.2,3526.3,2.3384]
[1721594010452,3.0,3527.2,3526.3,2.3384]
[1721594010657,5.83504,3527.3,3526.3,2.3384]
[1721594011160,3.0,3527.3,3526.3,2.3384]
[1721594011320,3.0,3527.4,3526.3,2.3384]
[1721594011525,0.35,3527.5,3526.3,2.3384]
[1721594011743,2.83493,3527.5,3526.3,2.3384]
[1721594011920,3.283493,3527.4,3526.3,2.3384]
[1721594012147,0.283493,3527.4,3526.3,2.3384]
[1721594012315,3.118443,3527.4,3526.3,2.3384]
[1721594012520,3.0,3527.3,3526.3,2.3384]
[1721594013255,3.118443,3527.4,3526.3,2.3384]
[1721594013460,3.3118443,3527.3,3526.3,2.3384]
[1721594013827,0.3118443,3527.3,3526.3,2.3384]
[1721594014029,3.0,3527.9,3526.3,2.3384]
[1721594014337,5.83455,3527.9,3526.3,2.3384]
[1721594014855,7.48,3528.0,3526.3,2.3384]
[1721594015224,7.48,3528.0,3526.5,2.4499]
[1721594015427,7.48,3528.0,3526.6,2.77828]
[1721594016160,7.48,3528.0,3526.8,2.4499]
[1721594016364,7.48,3528.0,3527.0,2.4499]
[1721594016652,7.48,3528.0,3527.1,2.4499]
[1721594016853,0.07531055,3529.0,3527.3,2.4499]
[1721594016854,7.48,3528.8,3527.3,2.4499]
[1721594017155,0.75553106,3528.7,3527.4,0.24499]
[1721594017355,0.75553106,3528.7,3527.3,2.4499]
[1721594017957,7.48,3528.8,3527.3,2.4499]
[1721594018164,3.0,3528.7,3527.3,2.4499]
[1721594025991,6.686,3528.7,3527.3,2.4499]
[1721594026198,2.83414,3528.4,3527.3,2.4499]
[1721594026407,2.83439,3528.1,3527.3,2.4499]
[1721594026542,0.283439,3528.0,3527.3,2.4499]
[1721594027378,3.0,3528.4,3527.3,2.4499]
[1721594027379,2.83434,3528.2,3527.3,2.4499]
[1721594027702,5.83441,3528.1,3527.3,2.4499]
[1721594028004,3.0,3528.0,3527.3,2.4499]
[1721594028368,5.83447,3528.0,3527.3,2.4499]
[1721594028763,3.0,3528.0,3527.3,2.4499]
[1721594029101,3.0,3528.4,3527.3,2.4499]
[1721594029256,0.888706,3528.3,3527.3,2.4499]
[1721594030249,10.31385,3528.8,3527.5,2.4522]
[1721594030250,7.48,3528.8,3527.5,2.4522]
[1721594031547,3.3839,3528.7,3527.5,2.4522]
[1721594031796,2.83413,3528.5,3527.5,2.4522]
[1721594032002,2.503,3528.5,3527.5,2.4522]
[1721594032207,2.83437,3528.2,3527.5,2.4522]
[1721594032366,3.62186,3528.1,3527.5,2.4522]
[1721594032568,3.0,3528.4,3527.5,2.4522]
[1721594032788,2.83429,3528.3,3527.5,2.4522]
[1721594032993,3.0,3528.2,3527.5,2.4522]
[1721594034091,2.83422,3528.3,3527.5,2.4522]
[1721594034398,3.0,3528.2,3527.5,2.4522]
[1721594034755,10.31382,3528.8,3527.5,2.4522]
[1721594034756,3.0,3528.4,3527.5,2.4522]
[1721594034959,3.0,3528.5,3527.5,2.4522]
[1721594035189,10.31388,3528.8,3527.5,2.4522]
[1721594035406,3.0,3528.4,3527.5,2.4522]
[1721594035577,3.0,3528.7,3527.5,2.4522]
[1721594035910,1.581688,3528.6,3527.5,2.4522]
[1721594036096,3.0,3528.7,3527.5,2.4522]
[1721594036301,7.48,3528.8,3527.5,2.4522]
[1721594036597,7.48,3528.8,3527.7,2.4522]
[1721594036950,7.48,3528.8,3527.8,2.4522]
[1721594037268,7.48,3528.8,3527.2,0.87730802]
[1721594037269,7.48,3528.8,3528.0,2.503]
[1721594037501,7.48,3528.8,3528.2,2.4522]
[1721594040805,0.07531055,3529.0,3528.2,2.4522]
[1721594041009,0.07531055,3529.0,3528.3,2.3382]
[1721594042680,0.07531055,3529.0,3528.2,2.3382]
[1721594042906,0.07531055,3529.0,3528.1,6.42527782]
[1721594042907,0.07531055,3529.0,3528.4,2.3382]
[1721594043066,0.07531055,3529.0,3528.3,0.55]
[1721594043067,0.07531055,3529.0,3528.6,2.3382]
[1721594044369,0.00466,3530.0,3528.6,2.3382]
[1721594044370,0.00466,3530.0,3528.7,0.05666712]
[1721594044574,0.00466,3530.0,3528.6,5.6732]
[1721594044575,0.00466,3530.0,3528.8,2.3382]
[1721594045816,2.83752,3530.0,3528.8,2.3382]
[1721594046019,3.0,3529.9,3528.8,2.3382]
[1721594046221,0.300466,3529.8,3528.8,2.3382]
[1721594046509,6.133516,3529.8,3528.8,2.3382]
[1721594046882,2.83311,3529.7,3528.8,2.3382]
[1721594047525,2.83341,3529.4,3528.8,2.3382]
[1721594047674,2.83337,3529.4,3528.8,2.3382]
[1721594048019,2.83342,3529.3,3528.8,2.3382]